Cogmind - Beta 13 @@@ ROGUE MODE // 2024.04.12 @ 21:22:53 Player: lazy_engineer Result: Self-destructed Performance ------------- Evolutions (2) 1000 Regions Visited (5) 1000 Robots Destroyed (47) 235 Value Destroyed (1069) 1069 Prototype IDs (4) 80 Alien Tech Used (0) 0 Bonus (202) 202 TOTAL SCORE: 3586 Bonus ------- Follower Combat Kills 202 Cogmind --------- Core Integrity 410/550 Matter 250/300 Energy 280/280 System Corruption 0% Temperature Cool (27) Movement Flying (250) Ox3 Location -8/Materials Parts ------- > --- POWER (1) -------- Cooled Ion Engine > --- PROPULSION (3) --- Improved Flight Unit > --- UTILITY (5) ------ Structural Scanner Sensor Array Improved Signal Interpreter > --- WEAPON (2) ------- Minigun Heavy Mace > --- INVENTORY (5) ---- Cooled Ion Engine VTOL Module EM Pulse Gun Improved Assault Rifle Improved Datajack Peak State ------------ > --- POWER ------------ Cooled Ion Engine > --- PROPULSION ------- Improved Flight Unit Improved Flight Unit Improved Flight Unit > --- UTILITY ---------- Small Storage Unit Weight Redist. System Structural Scanner Sensor Array Improved Signal Interpreter > --- WEAPON ----------- Improved Assault Rifle Minigun > --- INVENTORY -------- Cooled Ion Engine VTOL Module Visual Processing Unit Field Recycling Unit EM Pulse Gun Improved Assault Rifle Improved Assault Rifle Plasma Cutter [Rating: 27] Favorites ----------- Power Ion Engine Engine Ion Engine Propulsion Light Treads Treads Light Treads Wheel Wheel Flight Unit Improved Flight Unit Utility Small Storage Unit Device Improved Heat Sink Storage Small Storage Unit Processor Signal Interpreter Weapon Light Assault Rifle Energy Gun Medium Laser Ballistic Gun Light Assault Rifle Ballistic Cannon Light Cannon Special Weapon Mining Laser Impact Weapon Heavy Mace Build | -11 -10 -10 -9 -9 -8 ------- Run | Yrd Mat Min Mat Sto Mat Slots Evolved 4 | . . . 2 . 2 Power . | . . . . . . Propulsion 1 | . . . 1 . . Utility 3 | . . . 1 . 2 Weapon . | . . . . . . Parts Attached 51 | 8 7 8 1 21 6 Power 7 | 1 2 2 . 2 . Engine 7 | 1 2 2 . 2 . Core . | . . . . . . Reactor . | . . . . . . Propulsion 15 | 2 3 1 . 8 1 Treads 5 | 1 3 1 . . . Leg . | . . . . . . Wheel 1 | 1 . . . . . Hover . | . . . . . . Flight 9 | . . . . 8 1 Utility 9 | 2 . 2 1 1 3 Device 5 | . . 2 1 1 1 Storage 2 | 2 . . . . . Processor 2 | . . . . . 2 Hackware . | . . . . . . Protection . | . . . . . . Artifact . | . . . . . . Weapon 20 | 3 2 3 . 10 2 Energy Gun 3 | 3 . . . . . Energy Cannon . | . . . . . . Ballistic Gun 11 | . 2 2 . 6 1 Ballistic Cannon 2 | . . 1 . 1 . Launcher . | . . . . . . Special Weapon 3 | . . . . 3 . Impact Weapon 1 | . . . . . 1 Slashing Weapon . | . . . . . . Piercing Weapon . | . . . . . . Special Melee Weapon . | . . . . . . Unidentified Prototypes 4 | . . . . 4 . Parts Lost 14 | . 2 3 . 5 4 Power 5 | . 2 2 . 1 . Propulsion 5 | . . 1 . 2 2 Utility 3 | . . . . 1 2 Weapon 1 | . . . . 1 . Highest Loss Streak 4 | . 1 1 . 2 4 To Critical Strikes . | . . . . . . Average Slot Usage (%) 95 | . 98 99 88 86 98 Engine 12 | . 13 13 11 10 9 Treads 18 | . 20 27 22 2 . Wheel 1 | . 6 . . . . Flight 5 | . . . . 18 26 Device 12 | . . 13 22 21 26 Storage 16 | . 28 14 11 11 8 Energy Gun 5 | . 19 . . . . Ballistic Gun 14 | . 7 17 11 19 17 Ballistic Cannon 5 | . . 10 11 1 . Naked Turns . | . . . . . . Heaviest Build 21 | 18 18 15 16 20 21 Greatest Support 40 | 10 40 40 40 40 21 Greatest Overweight (x) 2 | 1 1 . . 2 2 Average Overweight (x) . | . . . . . . Largest Inventory Capacity 8 | 8 8 8 8 8 8 Average Capacity 7 | 7 8 8 8 8 7 Most Carried 8 | 6 8 8 7 8 8 Average Carried 7 | 3 5 7 7 7 7 Final Capacity 8 | 8 8 8 8 8 5 Final Carried 8 | 4 8 8 7 8 5 Class Distribution -------------------- 91% | Mutant 6% | Scout Dominant Class ---------------- Mutant | -10/Materials Mutant | -10/Mines Mutant | -9/Materials Mutant | -9/Storage Scout | -8/Materials Resources | -11 -10 -10 -9 -9 -8 ----------- Run | Yrd Mat Min Mat Sto Mat Matter Collected 935 | 273 98 155 25 384 . Remotely . | . . . . . . Salvage Created 1676 | 108 524 381 . 609 54 Parts 103 | 8 39 21 . 32 3 Haulers Intercepted 6 | . 2 . . 4 . Recyclers Shooed 1 | . . . . 1 . Parts Field Recycled . | . . . . . . Retrieved Matter . | . . . . . . Parts Self-Destructed . | . . . . . . Prevented . | . . . . . . Kills | -11 -10 -10 -9 -9 -8 ------- Run | Yrd Mat Min Mat Sto Mat Combat Hostiles Destroyed 33 | . 15 8 . 9 1 Guns 32 | . 15 7 . 9 1 Cannons 1 | . . 1 . . . Classes Destroyed 8 | 2 4 1 . 1 . Builder 1 | . . . . 1 . Tunneler 3 | 2 . 1 . . . Hauler 6 | . 2 . . 4 . Recycler 2 | 1 . . . 1 . Watcher 2 | . 2 . . . . Swarmer 10 | . 9 . . 1 . Grunt 20 | . 6 6 . 8 . Sentry 3 | . . 2 . . 1 Best Kill Streak 7 | 3 7 2 . 3 1 Combat Bots Only 7 | . 7 2 . 3 1 Max Kills in Single Turn 1 | 1 1 1 . 1 1 Gunslinging . | . . . . . . Exploded . | . . . . . . Melee . | . . . . . . Uniques/NPCs Destroyed . | . . . . . . Combat | -11 -10 -10 -9 -9 -8 -------- Run | Yrd Mat Min Mat Sto Mat Hostile Shots Fired 191 | . 66 43 5 56 21 Missed 41 | . 13 11 2 12 3 Damage Taken 2228 | . 528 562 44 530 564 Core 368 | . 68 34 . 126 140 Absorbed by Shields . | . . . . . . Core Remaining (%) 75 | 100 . 59 . 68 . Volleys Fired 156 | 9 70 29 3 43 2 Largest 2 | 2 2 2 2 2 2 Hottest 100 | 90 90 55 55 100 46 Shots Fired 258 | 18 91 60 6 80 3 Gun 240 | 18 91 52 3 73 3 Cannon 14 | . . 8 3 3 . Launcher . | . . . . . . Special 4 | . . . . 4 . Kinetic 171 | . 26 60 6 76 3 Thermal 87 | 18 65 . . 4 . Explosive . | . . . . . . Electromagnetic . | . . . . . . Robot Hit Streak 19 | 6 11 19 5 17 3 Robot Miss Streak 5 | 2 3 1 1 5 1 Penetration Max . | . . . . . . Secondary Targets 2 | . 1 . . 1 . Max Gunslinging Chain 1 | . 1 . . 1 . Shots Hit Robots 179 | 12 63 46 5 50 3 Core Hits 82 | 4 32 23 1 20 2 Critical Kills . | . . . . . . Critical Parts Destroyed 1 | . . . . 1 . Critical Strikes 4 | 2 . . 1 1 . Burn 2 | 2 . . . . . Destroy 1 | . . . . 1 . Blast 1 | . . . 1 . . Melee Attacks 1 | . . . . . 1 Impact 1 | . . . . . 1 Slashing . | . . . . . . Piercing . | . . . . . . Sneak Attacks . | . . . . . . Combat Hostiles . | . . . . . . Follow-up Attacks . | . . . . . . Damage Inflicted 2045 | 145 650 409 71 716 54 Guns 1861 | 145 650 314 18 701 33 Cannons 163 | . . 95 53 15 . Explosions . | . . . . . . Melee 21 | . . . . . 21 Ramming . | . . . . . . Kinetic 1370 | . 141 409 71 716 33 Thermal 654 | 145 509 . . . . Explosive . | . . . . . . Electromagnetic . | . . . . . . Impact 21 | . . . . . 21 Slashing . | . . . . . . Piercing . | . . . . . . Highest Corruption 1 | . 1 1 . . . Average Corruption 1 | . 1 1 . . . Corruption Purged . | . . . . . . Corruption Blocked . | . . . . . . Effects 8 | . 1 7 . . . Message Errors 2 | . . 2 . . . Matter Fused 1 | . . 1 . . . Heat Flow Errors 1 | . . 1 . . . Energy Discharges 1 | . . 1 . . . Data Loss (major) 1 | . 1 . . . . Misfires 2 | . . 2 . . . Overload Shots . | . . . . . . Overflow Damage . | . . . . . . Projectiles . | . . . . . . Explosions . | . . . . . . Melee . | . . . . . . Knockbacks 2 | . . 1 . 1 . Impact . | . . . . . . Kinetic 2 | . . 1 . 1 . Secondary . | . . . . . . Self-Inflicted Damage . | . . . . . . Shots . | . . . . . . Rammed . | . . . . . . Targets Rammed . | . . . . . . Kicked . | . . . . . . Crushed . | . . . . . . Highest Temperature 270 | 120 270 153 17 8 . Average Temperature 84 | 52 125 30 12 3 . Received Heat Transfer 669 | . 156 297 45 117 54 Effects 1 | . 1 . . . . Interference 1 | . 1 . . . . Siege Activations . | . . . . . . Robots Corrupted . | . . . . . . Combat Hostiles . | . . . . . . Parts Fried . | . . . . . . Impact Corruptions . | . . . . . . Robots Melted . | . . . . . . Combat Hostiles . | . . . . . . Parts Melted 1 | . 1 . . . . Heat Transferred 1741 | 532 1209 . . . . Parts Sabotaged . | . . . . . . Parts Stolen . | . . . . . . Parts Stripped . | . . . . . . Power Chain Reactions . | . . . . . . Alert | -11 -10 -10 -9 -9 -8 ------- Run | Yrd Mat Min Mat Sto Mat Peak Influence 326 | 15 326 247 15 242 249 Initial 112 | . 9 112 . 5 102 Average 108 | 3 165 83 13 99 159 Maximum Alert Level 1 | . 1 1 . 1 1 Low Security (%) 78 | 100 61 82 100 84 79 Level 1 21 | . 38 17 . 15 20 Level 2 . | . . . . . . Level 3 . | . . . . . . Level 4 . | . . . . . . Level 5 . | . . . . . . High Security . | . . . . . . Max Security . | . . . . . . Squads Dispatched 10 | . 3 . . 3 4 Investigation 3 | . 1 . . 1 1 Extermination . | . . . . . . Reinforcement 7 | . 2 . . 2 3 Assault . | . . . . . . Garrison . | . . . . . . Intercept . | . . . . . . Searches Triggered . | . . . . . . Construction Impeded . | . . . . . . Haulers Reinforced . | . . . . . . Active Scanning Responses . | . . . . . . Cargo Convoy Interrupts . | . . . . . . Stealth | -11 -10 -10 -9 -9 -8 --------- Run | Yrd Mat Min Mat Sto Mat Distress Signals 6 | . 1 . . 3 2 Communications Jammed . | . . . . . . Distress Signals . | . . . . . . Times Spotted 65 | . 22 8 1 24 10 Peak Tracking Total 10 | . 10 2 1 5 5 Tactical Retreats 2 | . . . . 1 1 Traps | -11 -10 -10 -9 -9 -8 ------- Run | Yrd Mat Min Mat Sto Mat Traps Triggered 3 | . 2 . . 1 . Indirectly . | . . . . . . Trap Hack Attempts . | . . . . . . Triggered . | . . . . . . Disarmed . | . . . . . . Reprogrammed . | . . . . . . Reused . | . . . . . . Traps Extracted . | . . . . . . Installed . | . . . . . . Triggered . | . . . . . . Machines | -11 -10 -10 -9 -9 -8 ---------- Run | Yrd Mat Min Mat Sto Mat Machines Disabled 2 | . . . . 2 . Max in Single Turn 1 | . . . . 1 . Garrison Access 1 | . . . . 1 . Machines Repaired . | . . . . . . Machines Dismantled 1 | . . . . 1 . Machines Sabotaged . | . . . . . . Overloaded Fab Kills . | . . . . . . Hacking | -11 -10 -10 -9 -9 -8 --------- Run | Yrd Mat Min Mat Sto Mat Machines Accessed 14 | . 3 1 . 5 5 Terminals 9 | . 2 . . 3 4 Fabricators . | . . . . . . Repair Stations . | . . . . . . Recycling Units 2 | . 1 . . 1 . Scanalyzers 1 | . . . . . 1 Garrison Access 1 | . . . . 1 . Total Hacks 43 | . 17 1 . 13 12 Successful 27 | . 12 1 . 10 4 Failed 16 | . 5 . . 3 8 Catastrophic 4 | . 2 . . . 2 Database Lockouts . | . . . . . . Manual 33 | . 14 . . 10 9 Terminals 34 | . 14 . . 10 10 Fabricators . | . . . . . . Repair Stations . | . . . . . . Recycling Units 5 | . 3 . . 2 . Scanalyzers 2 | . . . . . 2 Garrison Access 1 | . . . . 1 . Terminal Hacks 11 | . 5 1 . 5 . Open Door 2 | . . 1 . 1 . Emergency Access Points 1 | . . . . 1 . Locate Traps 2 | . 2 . . . . Hauler Manifests 2 | . 1 . . 1 . Zone Layout 4 | . 2 . . 2 . Fabricator Hacks . | . . . . . . Repair Station Hacks . | . . . . . . Recycling Unit Hacks 2 | . 1 . . 1 . Report Inventory 1 | . 1 . . . . Retrieve Components 1 | . . . . 1 . Scanalyzer 2 | . . . . . 2 Insert Component 1 | . . . . . 1 Analyze 1 | . . . . . 1 Garrison Access Hacks 1 | . . . . 1 . Seal Access 1 | . . . . 1 . Unauthorized Hacks 11 | . 6 . . 3 2 Terminals 8 | . 4 . . 2 2 Track 1 | . 1 . . . . Assimilate 1 | . . . . . 1 Botnet 3 | . 2 . . 1 . Operators 3 | . 1 . . 1 1 Fabricators . | . . . . . . Repair Stations . | . . . . . . Recycling Units 3 | . 2 . . 1 . Reject 2 | . 1 . . 1 . Tunnel 1 | . 1 . . . . Scanalyzers . | . . . . . . Garrison Access . | . . . . . . Data Cores Recovered . | . . . . . . Used . | . . . . . . Hacking Detections 9 | . 3 . . 2 4 Full Trace Events 2 | . . . . 1 1 Feedback Events . | . . . . . . Feedback Blocked . | . . . . . . Robot Schematics Acquired . | . . . . . . Robots Built . | . . . . . . Authchips . | . . . . . . Time . | . . . . . . Total Robot Build Rating . | . . . . . . Part Schematics Acquired 1 | . . . . . 1 Parts Built . | . . . . . . Authchips . | . . . . . . Time . | . . . . . . Total Part Build Rating . | . . . . . . Parts Repaired . | . . . . . . Time . | . . . . . . Parts Recycled . | . . . . . . Recycled Matter . | . . . . . . Retrieved Matter . | . . . . . . Retrieved Components 10 | . . . . 10 . Parts Scanalyzed 1 | . . . . . 1 Part Schematics Acquired 1 | . . . . . 1 Parts Damaged . | . . . . . . Bothacking | -11 -10 -10 -9 -9 -8 ------------ Run | Yrd Mat Min Mat Sto Mat Used RIF Installer . | . . . . . . Robots Hacked . | . . . . . . Non-combat . | . . . . . . Combat . | . . . . . . Robot Hacks Applied . | . . . . . . Relay Couplers Released . | . . . . . . Fabnet Peak Effective % . | . . . . . . Robots Rewired . | . . . . . . Allies Hacked . | . . . . . . Hacks Repelled . | . . . . . . Allies | -11 -10 -10 -9 -9 -8 -------- Run | Yrd Mat Min Mat Sto Mat Total Allies 14 | . . 3 . 10 1 Largest Group 10 | . . 3 . 10 1 Highest-Rated Group 88 | . . 40 . 88 10 Highest-Rated Ally 16 | . . 16 . 16 10 Total Orders . | . . . . . . Ally Attacks 84 | . . 3 . 81 . Total Damage 739 | . . 44 . 695 . Kills 11 | . . . . 11 . Allies Corrupted . | . . . . . . Allies Melted . | . . . . . . Intel | -11 -10 -10 -9 -9 -8 ------- Run | Yrd Mat Min Mat Sto Mat Robot Analysis Total . | . . . . . . Derelict Logs Recovered 2 | . . 2 . . . Drone Launches . | . . . . . . Drone Recoveries . | . . . . . . Exploration | -11 -10 -10 -9 -9 -8 ------------- Run | Yrd Mat Min Mat Sto Mat Turns Passed 3002 | 75 779 1217 108 607 216 Spaces Moved 1928 | 36 455 645 62 351 379 Core 58 | 10 . . . 48 . Treads 935 | . 195 645 62 33 . Legs . | . . . . . . Wheels 286 | 26 260 . . . . Hover . | . . . . . . Flight 649 | . . . . 270 379 Fastest Speed 30 | 50 95 160 160 30 34 Average Speed 116 | 80 122 160 160 109 35 Slowest Speed 177 | 95 160 160 160 160 177 Overloaded Moves . | . . . . . . Propulsion Burnouts . | . . . . . . Robots Hopped 1 | . . . . . 1 Cave-ins Triggered . | . . . . . . Exploration Rate (%) 46 | 4 74 97 6 58 41 Regions Visited 5 Branch Regions 2 Pre-discovered Areas 2 | . 1 1 . . . Known Exits Taken . | . . . . . . Unknown Exits Taken 5 | 1 1 1 1 1 . Scrap Searched 1 | . . 1 . . . Spaces Dug 1 | . . . . 1 . Terrain Destroyed 1 | . . . . 1 . Melee . | . . . . . . Projectile 1 | . . . . 1 . AOE . | . . . . . . Terrain Rammed . | . . . . . . Walls Destroyed . | . . . . . . Machines Disabled . | . . . . . . Actions | -11 -10 -10 -9 -9 -8 --------- Run | Yrd Mat Min Mat Sto Mat Total 2437 | 64 589 780 66 482 456 Wait 239 | . 46 93 1 40 59 Move 1921 | 35 454 644 61 350 377 Hop 1 | . . . . . 1 Pick Up 37 | 11 8 2 . 12 4 Fast Attach 16 | . 3 5 . 6 2 Attach 20 | 8 2 . 1 6 3 Detach 3 | 1 . . . . 2 Swap 15 | . 2 3 . 9 1 Drop 24 | . 4 4 . 12 4 Fire 156 | 9 70 29 3 43 2 Melee 1 | . . . . . 1 Ram . | . . . . . . Kick . | . . . . . . Crush . | . . . . . . Escape Stasis . | . . . . . . Rewire . | . . . . . . Trap . | . . . . . . Miscellaneous 4 | . . . . 4 . Route ------- -11/Scrapyard -10/Materials (discovered 3 exits: [*Mat x2] / *Min) -10/Mines (discovered 2 exits: [*Mat x2]) -9/Materials (discovered 2 exits: Min / *Sto) -9/Storage -8/Materials History --------- Turn | Location | Event 34 | -11/Scrapyard | Discovered new exit (range 15) 76 | -11/Scrapyard | Entered Materials 115 | -10/Materials | Discovered new exit (range 16) 282 | -10/Materials | Destroyed 7 combat bots 308 | -10/Materials | Build established: Mutant 528 | -10/Materials | Discovered new exit (range 13) 583 | -10/Materials | Discovered new exit (range 8) 855 | -10/Materials | Entered Mines 856 | -10/Mines | Learned location of Storage (-9) 867 | -10/Mines | Met a Derelict bent on vengeance 970 | -10/Mines | Learned 2 Materials zone layouts 997 | -10/Mines | Learned Materials garrison access intel 1291 | -10/Mines | Assisted by bots powering up and referring to "LRC-V3" 1325 | -10/Mines | Met a Derelict who couldn't figure out how to use a Trap Extractor 1462 | -10/Mines | Discovered new exit (range 9) 1912 | -10/Mines | Discovered new exit (range 14) 2072 | -10/Mines | Entered Materials 2072 | -9/Materials | Evolved 2 slots: Propulsion x1, Utility x1 2073 | -9/Materials | Identified exit to Mines 2084 | -9/Materials | Discovered new exit (range 16) 2180 | -9/Materials | Entered Storage 2562 | -9/Storage | Assisted by bots powering up and referring to "LRC-V3" 2719 | -9/Storage | Lost 7 allies 2733 | -9/Storage | Discovered new exit (range 13) 2787 | -9/Storage | Entered Materials 2787 | -8/Materials | Evolved 2 slots: Utility x2 2788 | -8/Materials | Loaded intel: 1 garrison access location 3003 | -8/Materials | Self-destructed Last Messages --------------- reinforcements to area. 02978_ Technician 3a reveals location of Alarm Trap. 02981_ Dropped Maul. 02982_ Acquired Hvy. Mace. 02986_ ALERT: Hostiles spotted, dispatching reinforcements to Terminal M008. 02987_ Penetrated by Slug. 02987_ Weight Redist. System destroyed. 02987_ Knocked back. 02995_ H-61 Shepherd calls for reinforcements. 02995_ ALERT: Hostile activity reported, dispatching reinforcements to area. 02995_ Penetrated by Slug. 02995_ Imp. Flight Unit destroyed. 02995_ Knocked back. 02997_ Sml. Storage Unit destroyed. 02997_ Knocked back. 03003_ Imp. Flight Unit destroyed. 03003_ Knocked back. 03003_ Critical hit (Burn: +37). Map ----- +----------------------------------------------------+ | | | | | | | | | | | | | | | | | | | | | | | | | | | ###??????????????????????????????????????????????? | | ##??????????????????????????????????????????????? | | #########################???????????????????????? | | #########################???????????????????????? | | + ##???????????????????????? | | ############# ##### ###########??????????????? | | ############## ##### ###########??????????????? | | ###??#########+##### # ##??????????????? | | ##??? # ##### # """/ ##??????????????? | | ##??? # """ """ ##### # """ ##??????????????? | | ##??? # """u""" ##### # """ ##??????????????? | | ##??? # """ """ ##### + ##??????????????? | | ##??? # u #### % @ """ ##??????????????? | | ##??? # ! [ / ### """ =##??????????????? | | ##??? # #### [c | """ ##??????????????? | | ##??? #[ #### !c !##??????????????? | | ##??? ####/######## ########??????????????? | | #???### ####### H #########??????????????? | | ???????? ??? Y ####????????????????????? | | ??????? a?? ###?????????????????????? | | ????? = ##??????????????????????? | | ??????## ####### ##??????????????????????? | | ??????### ###############??????????????????????? | | ?????? ###???#########??????????????????????? | | ???????? ##???????????????????????????????????? | | ???????? ##???????????????????????????????????? | | ???????? ##???????????????????????????????????? | | ??????? ##???????????????????????????????????? | | ?????? # ???????????????????????????????????? | | ??????### ?????????????????????????????????????? | | ??????T # ?????????????????????????????????????? | | ?????????????????????????????????????????????????? | | ?????????????????????????????????????????????????? | | ?????????????????????????????????????????????????? | | ????????????o????????????????????????????????????? | | ?????????????????????????????????????????????????? | | ?????????????????????????????????????????????????? | +----------------------------------------------------+ Best States ------------- Heat Dissipation 42 Energy Generation 14 Energy Capacity 280 Matter Stores 300 Matter Capacity 300 Sight Range 16 Robot Scan Range 14 Terrain Scan Density 10 Additional Mass Support 6 Evasion (%) 63 Recoil Reduction 2 Item Schematics ----------------- Imp. Flight Unit | -8/Materials | Scanalyzed Robot Schematics ------------------ None Fabricated ------------ Nothing Alien Tech Used ----------------- None Achievements -------------- None Challenges ------------ None Game ------ Seed HoverZhirovSheargun Manual? 0 Play Time 00:29:31 Cumulative 32.5 hours Start 2024.04.12 @ 20:54:21 End 2024.04.12 @ 21:22:53 Sessions 1 Manual Loads 0 Difficulty Rogue Special Mode None Game No. 65 Rogue 65 Adventurer 0 Explorer 0 Win Type - Total 0 Types 0/0/0/0/0/0/0/0/0 Lore% 23 Gallery% 26 Achievement% 23 Wizard Run 0 Options --------- Layout 0 ASCII 0 Keyboard 0 Movement Mouse Keybinds 0 Fullscreen 1 Font 24/Smallcaps Map View 76x50 Zoom Use 0% Tactical HUD 1 Map Filters NONE Filters NONE Steam 1 RUN: 07ee73a2-8a0c-4151-9a16-2e261336d281